fUSD/lending_fUSD_20241219
["ID","MTS","AMOUNT","RATE_DAILY","PERIOD"]
[346026872,1734634237234,-500.0,0.00024271,4]
[346026873,1734634237243,-500.0,0.00024271,4]
[346026874,1734634237253,-500.0,0.00024271,4]
[346026875,1734634237264,-500.0,0.00024271,4]
[346026876,1734634237274,-173.75030052,0.00024271,4]
[346026880,1734634237966,-338.74999889,0.00023998,4]
[346026881,1734634237979,-161.25000111,0.00023998,4]
[346026882,1734634237988,-233.74998489,0.00024271,4]
[346026883,1734634238069,-92.49971459,0.00024271,4]
[346026884,1734634238080,-500.0,0.00024271,4]
[346026885,1734634238090,-500.0,0.00024271,4]
[346026886,1734634238100,-435.8,0.00024271,4]
[346026887,1734634238109,-1374.7,0.00024271,4]
[346026888,1734634238120,-500.0,0.00024271,4]
[346026889,1734634238130,-500.0,0.00024271,4]
[346026890,1734634238139,-500.0,0.00024271,4]
[346026891,1734634238149,-747.37,0.00024271,4]
[346026892,1734634238159,-500.0,0.00024271,4]
[346026893,1734634238172,-500.0,0.00024271,4]
[346026894,1734634238182,-452.94157478,0.00024271,4]
[346026895,1734634238191,-500.0,0.00024271,4]
[346026896,1734634238202,-500.0,0.00024271,4]
[346026897,1734634238211,-500.0,0.00024271,4]
[346026898,1734634238221,-500.0,0.00024271,4]
[346026899,1734634238230,-500.0,0.00024271,4]
[346026900,1734634238240,-500.0,0.00024271,4]
[346026901,1734634238251,-500.0,0.00024271,4]
[346026902,1734634238260,-500.0,0.00024271,4]
[346026903,1734634238270,-500.0,0.00024271,4]
[346026904,1734634238280,-570.7051616,0.00024271,4]
[346026905,1734634238289,-500.0,0.00024271,4]
[346026906,1734634238301,-500.0,0.00024271,4]
[346026907,1734634238311,-500.0,0.00024271,4]
[346026908,1734634238320,-500.0,0.00024271,4]
[346026909,1734634238329,-293.12323103,0.00024271,4]
[346026922,1734634238475,-206.87676897,0.00024271,4]
[346026924,1734634238484,-500.0,0.00024271,4]
[346026926,1734634238494,-500.0,0.00024271,4]
[346026928,1734634238503,-156.96070852,0.00024271,4]
[346026930,1734634238514,-556.90929148,0.00024271,4]
[346026932,1734634238523,-500.0,0.00024271,4]
[346026934,1734634238533,-500.0,0.00024272,4]
[346026936,1734634238542,-500.0,0.00024272,4]
[346026938,1734634238552,-500.0,0.00024272,4]
[346026940,1734634238562,-500.0,0.00024272,4]
[346026942,1734634238572,-500.0,0.00024272,4]
[346026944,1734634238581,-213.54,0.00024272,4]
[346026946,1734634238590,-355.1,0.00024272,4]
[346026948,1734634238600,-567.1157431,0.00024272,4]
[346026950,1734634238609,-177.20279549,0.00024272,4]
[346026952,1734634238618,-500.0,0.00024272,4]
[346026954,1734634238627,-460.02067696,0.00024272,4]
[346026956,1734634238636,-500.0,0.00024272,4]
[346026958,1734634238645,-494.57,0.00024272,4]
[346026960,1734634238654,-500.0,0.00024272,4]
[346026962,1734634238663,-500.0,0.00024272,4]
[346026964,1734634238673,-500.0,0.00024272,4]
[346026966,1734634238682,-500.0,0.00024272,4]
[346026968,1734634238691,-500.0,0.00024272,4]
[346026970,1734634238700,-500.0,0.00024272,4]
[346026972,1734634238709,-500.0,0.00024272,4]
[346026974,1734634238718,-500.0,0.00024272,4]
[346026976,1734634238726,-500.0,0.00024272,4]
[346026977,1734634238736,-437.54,0.00024272,4]
[346026980,1734634238745,-500.0,0.00024272,4]
[346026982,1734634238754,-500.0,0.00024272,4]
[346026983,1734634238763,-500.0,0.00024272,4]
[346026984,1734634238773,-500.0,0.00024272,4]
[346026985,1734634238782,-707.77,0.00024272,4]
[346026986,1734634238792,-500.0,0.00024272,4]
[346026987,1734634238803,-500.0,0.00024272,4]
[346026988,1734634238812,-500.0,0.00024272,4]
[346026989,1734634238821,-500.0,0.00024272,4]
[346026990,1734634238831,-500.0,0.00024272,4]
[346026991,1734634238841,-500.0,0.00024272,4]
[346026992,1734634238850,-167.93,0.00024272,4]
[346026993,1734634238860,-500.0,0.00024272,4]
[346026994,1734634238870,-426.33,0.00024272,4]
[346026995,1734634238880,-983.66979087,0.00024272,4]
[346026996,1734634238893,-85.49020913,0.00024272,4]
[346026997,1734634238902,-500.0,0.00024272,4]
[346026998,1734634238912,-588.77,0.00024272,4]
[346026999,1734634238922,-500.0,0.00024272,4]
[346027000,1734634238931,-263.04777401,0.00024272,4]
[346027001,1734634238941,-500.0,0.00024272,4]
[346027002,1734634238951,-199.02459608,0.00024272,4]
[346027003,1734634238960,-500.0,0.00024272,4]
[346027005,1734634238970,-500.0,0.00024272,4]
[346027007,1734634238980,-944.26,0.00024272,4]
[346027009,1734634238989,-500.0,0.00024272,4]
[346027011,1734634238999,-1058.66,0.00024272,4]
[346027012,1734634239008,-500.0,0.00024272,4]
[346027013,1734634239017,-500.0,0.00024272,4]
[346027015,1734634239027,-293.66,0.00024272,4]
[346027016,1734634239036,-500.0,0.00024272,4]
[346027017,1734634239047,-500.0,0.00024272,4]
[346027018,1734634239056,-583.83,0.00024272,4]
[346027019,1734634239066,-500.0,0.00024272,4]
[346027020,1734634239075,-500.0,0.00024272,4]
[346027021,1734634239085,-185.13151221,0.00024272,4]
[346027022,1734634239097,-314.86848779,0.00024272,4]
[346027023,1734634239108,-202.90062791,0.00024275,4]
[346027024,1734634239122,-297.09937209,0.00024275,4]
[346027025,1734634239131,-536.81,0.00024275,4]
[346027026,1734634239143,-500.0,0.00024275,4]
[346027027,1734634239154,-576.75,0.00024275,4]
[346027028,1734634239164,-216.8,0.00024275,4]
[346027029,1734634239175,-266.06591,0.00024288,7]
[346027030,1734634239184,-218.89629133,0.00024333,2]
[346027031,1734634239193,-14.37842658,0.00024334,2]
[346027032,1734634239205,-424.24731028,0.00024334,2]
[346027036,1734634240449,-3023.49371586,0.00024334,2]
[346027037,1734634240458,-976.54,0.00024347,2]
[346027038,1734634240469,-436.03,0.00024347,2]
[346027039,1734634240479,-436.03,0.00024347,2]
[346027040,1734634240488,-976.54,0.00024347,2]
[346027041,1734634240497,-976.54,0.00024347,2]
[346027042,1734634240506,-436.03,0.00024347,2]
[346027043,1734634240516,-1951.76,0.00024347,2]
[346027044,1734634240527,-791.51,0.00024347,2]
[346027045,1734634240536,-312.24044203,0.00024362,2]
[346027046,1734634240549,-1183.177043,0.000244,2]
[346027047,1734634240558,-218.89629133,0.00024414,2]
[346027048,1734634240568,-500.0,0.00024457,4]
[346027049,1734634240578,-500.0,0.00024457,4]
[346027050,1734634240587,-542.0,0.00024457,4]
[346027051,1734634240597,-500.0,0.00024457,4]
[346027052,1734634240607,-500.0,0.00024457,4]
[346027053,1734634240617,-500.0,0.00024458,4]
[346027054,1734634240626,-500.0,0.00024458,4]
[346027055,1734634240636,-500.0,0.00024458,4]
[346027056,1734634240646,-500.0,0.00024458,4]
[346027057,1734634240656,-374.43186919,0.00024458,4]
[346027059,1734634240666,-500.0,0.00024458,4]
[346027061,1734634240676,-500.0,0.00024458,4]
[346027063,1734634240687,-545.54,0.00024458,4]
[346027064,1734634240696,-500.0,0.00024458,4]
[346027065,1734634240706,-654.97,0.00024458,4]
[346027066,1734634240715,-500.0,0.00024458,4]
[346027067,1734634240725,-768.18,0.00024458,4]
[346027068,1734634240734,-1746.742,0.00024462,2]
[346027069,1734634240743,-2251.90242194,0.00024462,2]
[346027070,1734634240755,-59.24157806,0.00024462,2]
[346027071,1734634240764,-816.0,0.00024462,2]
[346027072,1734634240774,-535.0,0.00024462,2]
[346027073,1734634240783,-3631.0,0.00024462,2]
[346027074,1734634240798,-150.244,0.00024462,2]
[346027075,1734634240807,-1169.0,0.00024462,2]
[346027076,1734634240817,-276.367,0.00024462,2]
[346027077,1734634240827,-150.0,0.00024462,2]
[346027078,1734634240836,-3884.0,0.00024462,2]
[346027079,1734634240846,-3110.032,0.00024462,2]
[346027080,1734634240855,-1229.618,0.00024462,2]
[346027081,1734634240865,-3462.11945272,0.00024476,2]
[346027082,1734634240876,-266.06591,0.00024488,7]
[346027083,1734634240886,-218.89629133,0.00024495,2]
[346027084,1734634240895,-270.0950911,0.000245,2]
[346027085,1734634240905,-169.56227279,0.00024544,4]
[346027086,1734634240917,-363.96192441,0.00024544,4]
[346027087,1734634240927,-500.0,0.00024544,4]
[346027088,1734634240936,-500.0,0.00024544,4]
[346027089,1734634240946,-1247.16,0.00024544,4]
[346027090,1734634240956,-500.0,0.00024544,4]
[346027091,1734634240966,-383.97555567,0.00024544,4]
[346027092,1734634240978,-258.67444433,0.00024544,4]
[346027093,1734634240987,-500.0,0.00024545,4]
[346027094,1734634240997,-500.0,0.00024545,4]
[346027095,1734634241006,-341.49,0.00024545,4]
[346027096,1734634241016,-322.36432304,0.00024545,4]
[346027097,1734634241026,-500.0,0.00024545,4]
[346027098,1734634241036,-1374.7,0.00024545,4]
[346027099,1734634241045,-500.0,0.00024545,4]
[346027100,1734634241054,-419.59320876,0.00024545,4]
[346027101,1734634241066,-80.40679124,0.00024545,4]
[346027102,1734634241076,-648.25,0.00024545,4]
[346027103,1734634241086,-747.37,0.00024545,4]
[346027104,1734634241095,-500.0,0.00024545,4]
[346027105,1734634241105,-500.0,0.00024545,4]
[346027106,1734634241116,-500.0,0.00024545,4]
[346027107,1734634241126,-500.0,0.00024545,4]
[346027108,1734634241136,-500.0,0.00024545,4]
[346027109,1734634241146,-500.0,0.00024545,4]
[346027110,1734634241155,-406.32,0.00024545,4]
[346027111,1734634241166,-500.0,0.00024545,4]
[346027112,1734634241178,-249.59570954,0.00024545,4]
[346027113,1734634241190,-250.40429046,0.00024545,4]
[346027114,1734634241199,-500.0,0.00024545,4]
[346027115,1734634241209,-500.0,0.00024545,4]
[346027116,1734634241221,-500.0,0.00024545,4]
[346027117,1734634241230,-500.0,0.00024545,4]
[346027118,1734634241239,-500.0,0.00024545,4]
[346027119,1734634241250,-500.0,0.00024545,4]
[346027120,1734634241259,-320.07331865,0.00024545,4]
[346027121,1734634241271,-179.92668135,0.00024545,4]
[346027122,1734634241280,-500.0,0.00024545,4]
[346027123,1734634241289,-425.25167865,0.00024545,4]
[346027153,1734634246209,-500.0,0.00023996,4]
[346027155,1734634246219,-260.13255397,0.00023996,4]
[346027157,1734634246230,-386.97846659,0.00023996,4]
[346027159,1734634246241,-500.0,0.00023997,4]
[346027161,1734634246251,-15.44575091,0.00023998,4]
[346027164,1734634246264,-484.55424909,0.00023998,4]
[346027165,1734634246274,-432.56466251,0.0002427,4]
[346027168,1734634246284,-500.0,0.00024271,4]
[346027170,1734634246295,-74.74832135,0.00024545,4]
[346027172,1734634246308,-713.87,0.00024545,4]
[346027173,1734634246318,-500.0,0.00024545,4]
[346027176,1734634246328,-500.0,0.00024545,4]
[346027177,1734634246338,-281.70822505,0.00024546,4]
[346027178,1734634246349,-500.0,0.00024546,4]
[346027179,1734634246359,-500.0,0.00024546,4]
[346027180,1734634246369,-500.0,0.00024546,4]
[346027181,1734634246379,-599.90851791,0.00024546,4]
[346027182,1734634246389,-395.25,0.00024546,4]
[346027183,1734634246399,-500.0,0.00024546,4]
[346027184,1734634246408,-500.0,0.00024546,4]
[346027185,1734634246418,-500.0,0.00024546,4]
[346027186,1734634246427,-500.0,0.00024546,4]
[346027187,1734634246437,-361.42,0.00024546,4]
[346027188,1734634246447,-500.0,0.00024546,4]
[346027189,1734634246456,-500.0,0.00024546,4]
[346027190,1734634246466,-500.0,0.00024546,4]
[346027191,1734634246475,-500.0,0.00024546,4]
[346027192,1734634246484,-500.0,0.00024546,4]
[346027193,1734634246494,-707.77,0.00024546,4]
[346027194,1734634246504,-500.0,0.00024546,4]
[346027195,1734634246513,-500.0,0.00024546,4]
[346027196,1734634246522,-500.0,0.00024546,4]
[346027197,1734634246532,-500.0,0.00024546,4]
[346027198,1734634246541,-500.0,0.00024546,4]
[346027199,1734634246554,-500.0,0.00024546,4]
[346027200,1734634246563,-500.0,0.00024546,4]
[346027201,1734634246572,-1069.16,0.00024546,4]
[346027202,1734634246582,-321.29,0.00024546,4]
[346027203,1734634246591,-588.77,0.00024546,4]
[346027204,1734634246600,-500.0,0.00024546,4]
[346027205,1734634246610,-88.72062611,0.00024546,4]
[346027206,1734634246622,-411.27937389,0.00024546,4]
[346027207,1734634246633,-500.0,0.00024546,4]
[346027208,1734634246642,-500.0,0.00024546,4]
[346027209,1734634246651,-944.26,0.00024546,4]
[346027210,1734634246660,-500.0,0.00024546,4]
[346027211,1734634246670,-1058.66,0.00024546,4]
[346027212,1734634246679,-500.0,0.00024546,4]
[346027213,1734634246688,-500.0,0.00024546,4]
[346027214,1734634246701,-500.0,0.00024546,4]
[346027215,1734634246710,-583.83,0.00024546,4]
[346027216,1734634246719,-500.0,0.00024546,4]
[346027217,1734634246728,-500.0,0.00024546,4]
[346027218,1734634246737,-500.0,0.00024546,4]
[346027220,1734634246747,-500.0,0.00024549,4]
[346027221,1734634246756,-536.81,0.00024549,4]
[346027222,1734634246765,-500.0,0.00024549,4]
[346027223,1734634246774,-218.89629133,0.00024576,2]
[346027224,1734634246783,-3462.11945272,0.00024617,2]
[346027225,1734634246793,-205.0,0.0002462,2]
[346027226,1734634246806,-218.89629133,0.00024657,2]
[346027228,1734634246815,-150.0,0.00024658,2]
[346027229,1734634246825,-266.06591,0.00024688,7]
[346027230,1734634246834,-1708.0,0.000247,2]
[346027231,1734634246844,-500.0,0.00024731,4]
[346027233,1734634246854,-500.0,0.00024731,4]
[346027234,1734634246863,-542.0,0.00024731,4]
[346027235,1734634246875,-207.57,0.00024731,4]
[346027236,1734634246884,-281.14,0.00024731,4]
[346027237,1734634246894,-500.0,0.00024732,4]
[346027238,1734634246904,-500.0,0.00024732,4]
[346027239,1734634246914,-500.0,0.00024732,4]
[346027240,1734634246923,-500.0,0.00024732,4]
[346027241,1734634246933,-500.0,0.00024732,4]
[346027242,1734634246942,-545.54,0.00024732,4]
[346027243,1734634246951,-500.0,0.00024732,4]
[346027244,1734634246961,-654.97,0.00024732,4]
[346027245,1734634246970,-500.0,0.00024732,4]
[346027246,1734634246979,-768.18,0.00024732,4]
[346027247,1734634246988,-218.89629133,0.00024738,2]
[346027248,1734634246997,-150.0,0.00024741,2]
[346027249,1734634247006,-3462.11945272,0.00024759,2]
[346027250,1734634247016,-2753.27635564,0.000248,2]
[346027251,1734634247025,-2095.61602951,0.000248,5]
[346027252,1734634247034,-3910.278685,0.000248,2]
[346027253,1734634247043,-500.0,0.00024818,4]
[346027254,1734634247053,-347.55,0.00024818,4]
[346027255,1734634247064,-1247.16,0.00024818,4]
[346027256,1734634247074,-637.26,0.00024818,4]
[346027257,1734634247083,-500.0,0.00024819,4]
[346027258,1734634247092,-500.0,0.00024819,4]
[346027259,1734634247102,-500.0,0.00024819,4]
[346027260,1734634247112,-1374.7,0.00024819,4]
[346027261,1734634247122,-500.0,0.00024819,4]
[346027262,1734634247131,-500.0,0.00024819,4]
[346027263,1734634247141,-747.37,0.00024819,4]
[346027264,1734634247150,-361.32152188,0.00024819,4]
[346027265,1734634247159,-487.20456191,0.00024819,4]
[346027266,1734634247169,-500.0,0.00024819,4]
[346027267,1734634247179,-500.0,0.00024819,4]
[346027268,1734634247191,-500.0,0.00024819,4]
[346027269,1734634247200,-500.0,0.00024819,4]
[346027270,1734634247209,-500.0,0.00024819,4]
[346027271,1734634247219,-500.0,0.00024819,4]
[346027272,1734634247228,-500.0,0.00024819,4]
[346027273,1734634247237,-500.0,0.00024819,4]
[346027274,1734634247246,-500.0,0.00024819,4]
[346027275,1734634247256,-500.0,0.00024819,4]
[346027276,1734634247265,-500.0,0.00024819,4]
[346027277,1734634247275,-500.0,0.00024819,4]
[346027278,1734634247284,-500.0,0.00024819,4]
[346027279,1734634247293,-218.89629133,0.00024819,2]
[346027280,1734634247319,-500.0,0.00024819,4]
[346027281,1734634247339,-500.0,0.00024819,4]
[346027282,1734634247348,-713.87,0.00024819,4]
[346027283,1734634247359,-500.0,0.00024819,4]
[346027284,1734634247368,-500.0,0.00024819,4]
[346027285,1734634247377,-500.0,0.0002482,4]
[346027286,1734634247386,-500.0,0.0002482,4]
[346027287,1734634247395,-500.0,0.0002482,4]
[346027288,1734634247404,-262.41,0.0002482,4]
[346027289,1734634247414,-500.0,0.0002482,4]
[346027290,1734634247423,-500.0,0.0002482,4]
[346027291,1734634247433,-500.0,0.0002482,4]
[346027292,1734634247442,-500.0,0.0002482,4]
[346027293,1734634247451,-500.0,0.0002482,4]
[346027294,1734634247460,-500.0,0.0002482,4]
[346027295,1734634247469,-500.0,0.0002482,4]
[346027296,1734634247478,-500.0,0.0002482,4]
[346027297,1734634247487,-707.77,0.0002482,4]
[346027298,1734634247497,-500.0,0.0002482,4]
[346027299,1734634247507,-500.0,0.0002482,4]
[346027300,1734634247515,-500.0,0.0002482,4]
[346027301,1734634247525,-500.0,0.0002482,4]
[346027302,1734634247534,-500.0,0.0002482,4]
[346027303,1734634247543,-500.0,0.0002482,4]
[346027304,1734634247552,-500.0,0.0002482,4]
[346027305,1734634247562,-1069.16,0.0002482,4]
[346027306,1734634247571,-588.77,0.0002482,4]
[346027307,1734634247580,-500.0,0.0002482,4]
[346027308,1734634247589,-521.05,0.0002482,4]
[346027309,1734634247598,-500.0,0.0002482,4]
[346027310,1734634247607,-524.12742354,0.0002482,4]
[346027311,1734634247616,-944.26,0.0002482,4]
[346027312,1734634247625,-500.0,0.0002482,4]
[346027313,1734634247634,-1058.66,0.0002482,4]
[346027314,1734634247644,-500.0,0.0002482,4]
[346027315,1734634247653,-500.0,0.0002482,4]
[346027316,1734634247663,-500.0,0.0002482,4]
[346027317,1734634247672,-583.83,0.0002482,4]
[346027318,1734634247682,-500.0,0.0002482,4]
[346027319,1734634247691,-152.87045904,0.0002482,4]
[346027320,1734634247701,-500.0,0.00024823,4]
[346027321,1734634247710,-536.81,0.00024823,4]
[346027322,1734634247720,-500.0,0.00024823,4]
[346027323,1734634247731,-150.0,0.00024854,2]
[346027324,1734634247740,-150.0,0.0002486,2]
[346027325,1734634247751,-800.0,0.00024877,2]
[346027326,1734634247760,-2087.49660268,0.0002489,2]
[346027327,1734634247770,-1170.9993,0.000249,2]
[346027328,1734634247779,-25857.2315,0.000249,2]
[346027329,1734634247789,-7388.6361,0.000249,2]
[346027330,1734634247799,-620.17,0.000249,31]
[346027331,1734634247814,-620.17,0.000249,31]
[346027332,1734634247823,-620.17,0.000249,31]
[346027333,1734634247833,-620.17,0.000249,31]
[346027334,1734634247843,-620.17,0.000249,31]
[346027335,1734634247852,-620.17,0.000249,31]
[346027336,1734634247862,-620.17,0.000249,31]
[346027337,1734634247871,-620.17,0.000249,31]
[346027338,1734634247881,-620.17,0.000249,31]
[346027339,1734634247892,-620.17,0.000249,31]
[346027340,1734634247902,-620.17,0.000249,31]
[346027341,1734634247911,-620.17,0.000249,31]
[346027342,1734634247921,-620.17,0.000249,31]
[346027343,1734634247931,-620.17,0.000249,31]
[346027344,1734634247941,-620.17,0.000249,31]
[346027345,1734634247951,-620.17,0.000249,31]
[346027346,1734634247960,-3462.11945272,0.000249,2]
[346027347,1734634247970,-218.89629133,0.000249,2]
[346027348,1734634247979,-1104.0,0.000249,2]
[346027349,1734634247988,-150.0,0.00024925,2]
[346027350,1734634247998,-283.10027114,0.00024979,2]
[346027351,1734634248007,-500.0,0.00024979,2]
[346027352,1734634248017,-350.12013744,0.00024979,2]
[346027353,1734634248027,-171.52046452,0.00024979,2]
[346027354,1734634248037,-500.0,0.00024979,2]
[346027355,1734634248046,-177.01633446,0.00024979,2]
[346027356,1734634248058,-9999.99,0.0002498,2]
[346027357,1734634248067,-1186.83644774,0.0002498,2]
[346027358,1734634248080,-1039.449305,0.0002498,2]
[346027359,1734634248092,-4548.1951,0.0002498,2]
[346027360,1734634248104,-608.74848933,0.0002498,2]
[346027361,1734634248188,-2293.75065793,0.0002498,2]
[346027362,1734634248197,-7494.32875578,0.0002498,2]
[346027363,1734634248214,-4950.85755119,0.0002498,2]
[346027364,1734634248225,-1577.083872,0.0002498,2]
[346027365,1734634248248,-1608.43756317,0.0002498,2]
[346027366,1734634248340,-223.16617929,0.0002498,2]
[346027367,1734634248351,-14146.11607857,0.0002498,2]
[346027368,1734634248361,-150.0,0.00024986,4]
[346027369,1734634248370,-223.18974333,0.00024986,4]
[346027370,1734634248380,-150.0,0.00024986,4]
[346027371,1734634248390,-1500.0,0.00024993,2]
[346027372,1734634248399,-150.0,0.00024998,2]
[346027373,1734634248409,-2226.55236,0.00024998,2]
[346027374,1734634248419,-2000.0,0.00024999,120]
[346027375,1734634248428,-500.0,0.00024999,120]
[346027376,1734634248438,-200.0,0.00024999,120]
[346027377,1734634248447,-205.20263877,0.00024999,2]
[346027378,1734634248457,-500.0,0.00024999,2]
[346027379,1734634248467,-109492.43295573,0.00025,3]
[346027380,1734634248476,-4611.78834018,0.00025,3]
[346027381,1734634248486,-247.70150112,0.00025,2]
[346027382,1734634248495,-226574.373783,0.00025,2]
[346027384,1734634695201,450.0,0.00013,2]
[346027385,1734634696292,500.0,0.00015,2]
[346027387,1734634697382,550.0,0.00017,2]
[346027389,1734635062764,154.29,0.00010137,2]
[346027409,1734635432230,-152.46292696,0.00019,4]
[346027410,1734635432240,-600.0,0.00019,2]
[346027411,1734635432250,-154.29,0.00019895,2]
[346027412,1734635432259,-550.49153101,0.00021164,2]
[346027413,1734635432268,-500.0,0.00021164,2]
[346027414,1734635432278,-600.84,0.00022018,2]
[346027415,1734635432287,-1000.0,0.00022528,2]
[346027416,1734635432296,-150.0,0.00022886,2]
[346027417,1734635432305,-250.0,0.00023186,2]
[346027418,1734635432314,-250.0,0.00023192,2]
[346027419,1734635432324,-500.0,0.00023205,2]
[346027420,1734635432333,-150.0,0.00023211,2]
[346027421,1734635432342,-150.0,0.0002323,2]
[346027422,1734635432352,-3884.0,0.0002323,2]
[346027423,1734635432360,-1102.135,0.0002323,2]
[346027424,1734635432370,-250.0,0.00023234,2]
[346027425,1734635432379,-330.32,0.00023303,2]
[346027426,1734635432388,-201.43,0.00023322,2]
[346027427,1734635432397,-250.0,0.00023322,2]
[346027428,1734635432406,-500.0,0.00023356,2]
[346027429,1734635432416,-158.91,0.00023383,2]
[346027430,1734635432425,-163.2,0.00023414,2]
[346027431,1734635432434,-159.44,0.00023497,2]
[346027432,1734635432443,-300.0,0.00023499,2]
[346027433,1734635432452,-7669.97122533,0.000235,15]
[346027434,1734635437343,-7245.33303259,0.000235,15]
[346027435,1734635437516,-2310.14988369,0.000235,15]
[346027436,1734635437681,-2774.54585839,0.000235,15]
[346027437,1734635437691,-1206.193,0.000235,4]
[346027438,1734635437701,-20763.38463198,0.00023507,2]
[346027453,1734635438172,-327.15359371,0.00023507,2]
[346027454,1734635438185,-237.50177431,0.00023507,2]
[346027455,1734635438195,-1000.0,0.0002351,2]
[346027457,1734635438205,-180.22,0.0002352,30]
[346027459,1734635438215,-396.3178372,0.00023592,2]
[346027462,1734635438348,-547.18977324,0.00023592,2]
[346027463,1734635438360,-896.4525,0.00023592,2]
[346027464,1734635438526,-2674.00988956,0.00023592,2]
[346027466,1734635438535,-635.38,0.000237,2]
[346027467,1734635438545,-419.698,0.0002375,2]
[346027468,1734635438559,-1116.54,0.00023936,2]
[346027469,1734635438568,-294.75491588,0.00023996,4]
[346027470,1734635438578,-500.0,0.00023996,4]
[346027471,1734635438587,-500.0,0.00023996,4]
[346027472,1734635438598,-500.0,0.00023996,4]
[346027473,1734635438608,-500.0,0.00023997,4]
[346027474,1734635438618,-500.0,0.00023997,4]
[346027475,1734635438627,-500.0,0.00023997,4]
[346027476,1734635438638,-500.0,0.00023997,4]
[346027477,1734635438648,-500.0,0.00023997,4]
[346027478,1734635438657,-500.0,0.00023997,4]
[346027479,1734635438667,-500.0,0.00023997,4]
[346027480,1734635438676,-500.0,0.00023997,4]
[346027481,1734635438686,-544.12,0.00023997,4]
[346027482,1734635438695,-599.39,0.00024055,2]
[346027485,1734635438704,-231.28,0.00024055,2]
[346027487,1734635438714,-1000.0,0.00024064,2]
[346027488,1734635438724,-299.99,0.00024174,7]
[346027489,1734635438733,-150.99,0.00024174,2]
[346027490,1734635438748,-5066.77,0.00024174,2]
[346027491,1734635438758,-150.0,0.00024192,2]
[346027492,1734635438767,-150.0,0.00024192,2]
[346027493,1734635438777,-726.9,0.00024192,2]
[346027494,1734635438787,-390.0,0.0002425,2]
[346027495,1734635438796,-500.0,0.0002427,4]
[346027496,1734635438805,-500.0,0.0002427,4]
[346027497,1734635438815,-500.0,0.0002427,4]
[346027498,1734635438824,-500.0,0.00024271,4]
[346027499,1734635438834,-500.0,0.00024271,4]
[346027500,1734635438844,-500.0,0.00024271,4]
[346027502,1734635438853,-455.63661824,0.00024271,4]
[346027503,1734635438863,-500.0,0.00024271,4]
[346027504,1734635438872,-500.0,0.00024271,4]
[346027505,1734635438881,-500.0,0.00024271,4]
[346027506,1734635438890,-544.12,0.00024271,4]
[346027507,1734635438900,-600.84,0.00024282,2]
[346027508,1734635438909,-8060.34,0.00024292,2]
[346027509,1734635438918,-535.0,0.00024462,2]
[346027510,1734635438928,-390.0,0.000245,2]
[346027511,1734635438936,-158.91,0.00024537,2]
[346027512,1734635438945,-500.0,0.00024544,4]
[346027513,1734635438955,-500.0,0.00024544,4]
[346027514,1734635438964,-500.0,0.00024544,4]
[346027515,1734635438973,-500.0,0.00024545,4]
[346027516,1734635438982,-500.0,0.00024545,4]